[Event "51st Rilton Cup 2023-24"]
[Site "Stockholm"]
[Date "2024.01.04"]
[Round "8.2"]
[White "Blomqvist, Erik"]
[Black "Sokolovsky, Yahli"]
[Result "0-1"]
[ECO "C84"]
[WhiteElo "2521"]
[BlackElo "2443"]
[Annotator "TA"]
[PlyCount "130"]
[EventDate "2023.12.27"]
[EventType "swiss"]
[EventCountry "SWE"]
[SourceTitle "playchess.com"]
[Source "ChessBase"]
[SourceQuality "1"]
[TimeControl "40/5400+30:1800+30"]

{[%evp 15,130,11,20,0,3,5,9,10,14,17,10,12,15,10,14,0,16,0,8,4,37,17,27,15,23,0,0,0,0,14,37,0,0,0,0,0,0,0,0,0,0,0,11,6,35,38,77,73,73,60,83,68,64,58,62,81,105,110,91,72,72,0,72,72,72,72,74,71,75,0,0,0,0,0,0,0,0,0,0,0,0,0,0,0,0,0,0,0,0,0,-2,-273,-273,-273,-273,-273,-273,-298,-273,-678,-663,-620,-557,-1725,-1557,-29975,-29976,-29976,-29977,-29977,-29978,-29978,-29978,-29978,-29979,-29979,-29978]} 1. e4 {[%emt 0:00:46]} e5 {[%emt 0:00:28]} 2. Nf3 {[%emt 0:00:08]} Nc6 {[%emt 0:00:04]} 3. Bb5 {[%emt 0:00:15]} a6 {[%emt 0:00:06]} 4. Ba4 {[%emt 0:00:06]} Nf6 {[%emt 0:00:05]} 5. O-O {[%emt 0:00:22]} Be7 {[%emt 0:00:09]} 6. d3 {[%emt 0:00:20]} b5 {[%emt 0:00:35]} 7. Bb3 {[%emt 0:00:09]} d6 {[%emt 0:00:03]} 8. a4 {[%emt 0:00:34]} Bd7 {[%emt 0:00:41]} 9. Be3 {[%emt 0:01:05] C84: Closed Ruy Lopez: Unusual White 6th moves.} O-O {[%emt 0:08:11]} 10. axb5 {[%emt 0:00:29] 10.h3 is not played anymore.} axb5 {[%emt 0:00:07]} 11. Nc3 {[%emt 0:00:08] The position is equal.} Na5 {[%emt 0:15:25] 11...Rxa1 is the recent fashion.} 12. Nd5 {[%emt 0:01:41]} Nxd5 {[%emt 0:08:09]} 13. Bxd5 {[%emt 0:00:05]} c6 {[%emt 0:01:06]} 14. Ba2 {[%emt 0:00:11]} c5 {[%emt 0:05:43]} 15. Bd5 {[%emt 0:08:00]} Nc6 {[%emt 0:00:09]} 16. c3 {[%emt 0:10:36]} Rxa1 {[%emt 0:02:23]} 17. Qxa1 {[%emt 0:00:14] [#]} Qc8 $146 {[%emt 0:00:12]} ({Predecessor:} 17... Bf6 18. Qa6 Qc8 19. Ra1 Qc7 20. h3 h6 21. Nh2 Rb8 22. Ng4 Be7 23. Qa2 Be8 {1-0 Yu,Y (2714)-Salem,A (2639) Sharjah Alef Blitz 2023 (3)}) 18. Qa2 {[%emt 0:02:36]} Bf6 {[%emt 0:07:04]} 19. Ng5 {[%emt 0:18:07][%cal Rg5f7,Bf3g5,Bg5h3,Bh3f2][%mdl 32]} Be8 {[%emt 0:08:05]} 20. f4 {[%emt 0:09:41]} (20. Ra1 {simplifies} Ne7 21. Qa8 Qxa8 22. Bxa8 h6 23. Nf3) 20... Qg4 {[%emt 0:03:18]} 21. Nh3 {[%emt 0:21:13]} Qe2 {[%emt 0:07:11]} 22. Bc1 {[%emt 0:02:03]} Ne7 {[%emt 0:00:06]} 23. Bb3 {[%emt 0:02:53] And now Qb1 would win.} (23. Nf2 $5 {[%cal Rd5b3]}) 23... Qxd3 {[%emt 0:16:06]} 24. Nf2 {[%emt 0:00:27]} Qe2 {[%emt 0:00:03]} 25. Bd1 {[%emt 0:07:43]} Qc4 {[%emt 0:00:05]} 26. Bb3 {[%emt 0:00:05]} Qe2 {[%emt 0:00:04]} 27. Bd1 $36 {[%emt 0:00:41][%mdl 2048] White has good play.} Qc4 {[%emt 0:00:07]} 28. Qxc4 {[%emt 0:01:30]} (28. Bb3 $5 Qe2 $8 $11) 28... bxc4 {[%emt 0:00:06]} 29. Be2 {[%emt 0:00:59]} Bb5 {[%emt 0:04:29]} 30. Ng4 {[%emt 0:03:00]} Ng6 {[%emt 0:01:50]} 31. Nxf6+ {[%emt 0:04:36]} gxf6 {[%emt 0:00:02]} 32. fxe5 {[%emt 0:03:22]} fxe5 {[%emt 0:00:05]} 33. Rd1 {[%emt 0:02:11]} Ra8 $1 {[%emt 0:08:10]} 34. Rxd6 {[%emt 0:00:05] Black must now prevent Kf2.} Ra1 {[%emt 0:00:03]} 35. Rd1 {[%emt 0:00:11]} Bc6 {[%emt 0:00:29]} 36. Bxc4 {[%emt 0:01:25]} Bxe4 {[%emt 0:00:02]} 37. Kf2 {[%emt 0:00:30]} Nf4 {[%emt 0:02:20]} 38. Rd8+ {[%emt 0:00:09]} Kg7 {[%emt 0:00:03]} 39. Bxf4 {[%emt 0:00:38]} exf4 $16 {[%emt 0:00:02][%mdl 4096] Endgame KRB-KRB} 40. Rd7 {[%emt 0:00:32]} Rb1 {[%emt 0:06:23]} 41. Rxf7+ {[%emt 0:30:27]} ({Not} 41. Bxf7 Rxb2+ 42. Ke1 Rb7 43. Be8+ (43. Rxb7 Bxb7 44. Bc4 Bxg2 $17) 43... Rxd7 44. Bxd7 Bxg2 $17) 41... Kh6 {[%emt 0:13:02]} 42. Rf6+ {[%emt 0:00:00]} (42. Rxf4 $16 Rxb2+ 43. Ke3 Bxg2 44. Be2) 42... Kg5 $11 {[%emt 0:00:05]} 43. Rb6 {[%emt 0:00:00]} Rc1 {[%emt 0:00:18]} 44. Be2 {[%emt 0:00:00][%cal Oh2h4]} Rc2 {[%emt 0:00:09]} 45. Ke1 {[%emt 0:00:00]} Rc1+ {[%emt 0:01:01]} 46. Kf2 {[%emt 0:00:00][%cal Oh2h4]} Rc2 {[%emt 0:00:09]} 47. Ke1 {[%emt 0:00:00]} Rc1+ {[%emt 0:00:03]} 48. Kd2 {[%emt 0:00:00]} Rh1 {[%emt 0:00:09]} 49. Rb5 {[%emt 0:00:00]} Rxh2 {[%emt 0:01:17][%cal Of4f3] [#] ...f3! would be deadly.} 50. Rxc5+ {[%emt 0:00:00]} Kf6 {[%emt 0:00:22]} 51. Rc4 {[%emt 0:00:00]} Ke5 {[%emt 0:00:16]} 52. Rc5+ {[%emt 0:00:00]} Kd6 {[%emt 0:01:29]} 53. b4 {[%emt 0:01:56][%mdl 8192] White does not recover from this.} (53. Rc4 $11 Kd5 54. Rc8 (54. Rd4+ Ke5 $11)) 53... f3 $1 $19 {[%emt 0:04:23]} ({And not} 53... Rxg2 54. Ke1 $11) 54. gxf3 {[%emt 0:00:44]} Bxf3 {[%emt 0:00:05]} 55. Ke3 {[%emt 0:00:05]} Bxe2 {[%emt 0:00:09] KRB-KR} 56. Rf5 {[%emt 0:03:09]} Bh5 {[%emt 0:06:07]} 57. Rf6+ $2 {[%emt 0:01:45]} (57. Ra5) 57... Ke5 {[%emt 0:01:57]} 58. Rh6 {[%emt 0:00:02]} Rh3+ {[%emt 0:00:08][%mdl 64] [#] Skewer} 59. Kf2 {[%emt 0:01:24]} Bg4 {[%emt 0:00:13]} 60. Rxh3 {[%emt 0:00:06]} Bxh3 {[%emt 0:00:04] KB-KPP. Black mates.} 61. Kg3 {[%emt 0:00:58]} Bf1 {[%emt 0:00:40]} 62. Kg4 {[%emt 0:00:30]} Kf6 {[%emt 0:00:07]} 63. Kh5 {[%emt 0:00:25]} Kg7 {[%emt 0:00:04]} 64. Kg5 {[%emt 0:00:04]} h6+ {[%emt 0:00:20]} 65. Kf5 {[%emt 0:00:24]} Ba6 {[%emt 0:02:17] Weighted Error Value: White=0.40/Black=0.04 (flawless)} 0-1

[Event "51st Rilton Cup 2023-24"]
[Site "Stockholm"]
[Date "2024.01.04"]
[Round "8.3"]
[White "Chasin, Nico"]
[Black "Parkhov, Yair"]
[Result "1/2-1/2"]
[ECO "A53"]
[WhiteElo "2444"]
[BlackElo "2495"]
[Annotator "TA"]
[PlyCount "116"]
[EventDate "2023.12.27"]
[EventType "swiss"]
[EventCountry "SWE"]
[SourceTitle "playchess.com"]
[Source "ChessBase"]
[SourceQuality "1"]
[TimeControl "40/5400+30:1800+30"]

{[%evp 14,116,6,1,-7,-3,15,28,24,17,31,27,40,38,38,0,51,34,38,22,20,6,13,0,0,0,0,-8,39,13,19,13,50,8,161,160,308,314,272,306,288,160,166,180,421,413,531,525,479,411,394,403,366,327,287,133,370,368,343,253,419,419,419,426,419,419,426,426,495,490,476,242,247,247,247,0,191,149,429,417,937,564,2888,2366,1941,1790,1948,1965,1893,1768,1272,59,2142,2971,2382,0,0,0,0,0,0,0,0,0,0]} 1. c4 {[%emt 0:09:15]} e5 {[%emt 0:00:43]} 2. Nc3 {[%emt 0:00:08]} d6 {[%emt 0:01:24]} 3. d4 {[%emt 0:04:04]} exd4 {[%emt 0:00:13]} 4. Qxd4 {[%emt 0:00:07]} Nc6 {[%emt 0:00:02]} 5. Qd2 {[%emt 0:00:12]} Nf6 {[%emt 0:00:06]} 6. e4 {[%emt 0:02:43]} g6 {[%emt 0:03:56]} 7. g3 {[%emt 0:08:24] 7.Bd3 is a critical line.} Bg7 {[%emt 0:02:00]} 8. Bg2 {[%emt 0:00:24]} O-O {[%emt 0:00:44] A53: Old Indian Defence without Nf3.} 9. Nge2 {[%emt 0:03:26]} Ne5 {[%emt 0:04:24]} 10. b3 {[%emt 0:04:16]} Bh3 {[%emt 0:02:56][%mdl 64] [#] Deflection. White has an edge.} 11. O-O {[%emt 0:00:14]} Bxg2 {[%emt 0:03:09]} (11... a5 {feels hotter.} 12. Qc2 Qd7 13. Bb2 Bxg2 14. Kxg2 a4) 12. Kxg2 {[%emt 0:00:42] [#]} Re8 $146 {[%emt 0:10:34]} ({Predecessor:} 12... a6 13. Bb2 b5 14. cxb5 axb5 15. f3 c6 16. Rfd1 d5 17. f4 Neg4 18. h3 b4 19. hxg4 bxc3 20. Nxc3 Nxg4 21. exd5 cxd5 22. Nxd5 {0-1 Kashlyak,A-Tarnowiecki,H EU-ch M937 corr 1991}) 13. Bb2 {[%emt 0:02:41]} a6 {[%emt 0:10:47][%cal Ob7b5]} 14. f3 {[%emt 0:03:03]} Ned7 {[%emt 0:06:47]} (14... b5 $11) 15. Rac1 {[%emt 0:07:13]} Nc5 {[%emt 0:10:35]} 16. b4 {[%emt 0:01:37]} Ncd7 {[%emt 0:00:05]} 17. a3 {[%emt 0:01:41]} a5 {[%emt 0:01:52]} 18. Nb5 {[%emt 0:00:43]} axb4 {[%emt 0:02:09]} 19. axb4 {[%emt 0:00:54]} Ne5 {[%emt 0:04:20]} 20. Rc2 {[%emt 0:11:01]} Qd7 {[%emt 0:04:08]} (20... Qe7 $11 {is superior.}) 21. Nf4 {[%emt 0:00:30]} Rad8 {[%emt 0:07:17]} 22. Rd1 {[%emt 0:02:54]} h5 {[%emt 0:03:23]} (22... Nxf3 23. Kxf3 Nxe4 24. Qc1 $14) 23. Qe2 {[%emt 0:07:32] Active counter play!} Qe7 $2 {[%emt 0:07:27]} (23... h4 $1 $11 {and Black is okay.}) 24. c5 $18 {[%emt 0:02:21][%mdl 64] Deflection} dxc5 {[%emt 0:05:41]} (24... Rd7 $16 25. cxd6 cxd6) 25. Bxe5 {[%emt 0:00:22]} ({Worse is} 25. bxc5 Rxd1 26. Qxd1 g5 $11) 25... Qxe5 {[%emt 0:00:17]} 26. Rxc5 {[%emt 0:00:07]} Qe7 {[%emt 0:00:12]} 27. Nxc7 {[%emt 0:00:20]} ({White must play} 27. Rxc7 $18 Qf8 28. Rxd8 (28. Rxb7 Rxd1 29. Qxd1 Rd8 $16) 28... Rxd8 29. Qa2 (29. Rxb7 Qxb4 30. Nd3 Qc4 $11)) 27... Rxd1 $16 {[%emt 0:00:36]} 28. Nxe8 {[%emt 0:00:10]} Rb1 $2 {[%emt 0:05:17]} (28... Rd7) 29. Qc2 $18 {[%emt 0:02:33]} Ra1 {[%emt 0:02:41]} 30. Nxg7 {[%emt 0:00:10]} Kxg7 {[%emt 0:00:35]} 31. Qb2 {[%emt 0:02:53]} Ra6 {[%emt 0:00:05]} 32. Nd5 {[%emt 0:02:00]} Qd8 {[%emt 0:00:06]} 33. Rc7 {[%emt 0:01:12]} b5 {[%emt 0:01:18]} 34. f4 {[%emt 0:12:21]} (34. Qd4 $18 {[%cal Oe4e5] is more deadly. Threatens to win with e5!} Qa8 35. Kh3) 34... Qa8 $2 {[%emt 0:01:03] Black is weak on the dark squares} (34... Qe8 $16 {keeps fighting.} 35. Nxf6 Rxf6) 35. Qe5 {[%emt 0:01:47]} Qd8 {[%emt 0:00:27]} 36. Qc3 {[%emt 0:03:39]} Qd6 $2 {[%emt 0:00:06]} (36... Qe8 37. Re7 Qd8) 37. Qxf6+ {[%emt 0:00:55]} Qxf6 {[%emt 0:00:06]} 38. Nxf6 {[%emt 0:00:03]} Kxf6 {[%emt 0:00:30][%mdl 4096] Endgame KR-KR} 39. Rb7 {[%emt 0:00:05]} Ra2+ {[%emt 0:00:40]} 40. Kh3 {[%emt 0:00:12]} Rb2 {[%emt 0:01:12]} 41. Rxb5 {[%emt 0:30:08]} Kg7 {[%emt 0:04:26]} 42. Rb6 {[%emt 0:00:00]} (42. Rb7 $142) 42... f6 {[%emt 0:01:13]} 43. Rb7+ {[%emt 0:00:00]} Kh6 {[%emt 0:01:01]} 44. Rb6 {[%emt 0:00:00]} Kg7 {[%emt 0:00:24]} 45. g4 {[%emt 0:00:00]} hxg4+ $2 {[%emt 0:00:09][%mdl 8192]} (45... Re2 $16 {was worth a try.} 46. Rb7+ Kf8 47. gxh5 gxh5) 46. Kxg4 {[%emt 0:00:00]} Rxh2 {[%emt 0:00:48]} (46... Kf7 $142 47. h4 Rg2+ 48. Kf3 Rc2) 47. b5 {[%emt 0:00:00]} Rh5 {[%emt 0:10:00]} 48. Rb7+ {[%emt 0:00:00]} Kh6 {[%emt 0:00:08]} 49. Kg3 {[%emt 0:00:00]} Rc5 {[%emt 0:00:58]} 50. b6 {[%emt 0:00:00]} g5 {[%emt 0:02:56]} 51. f5 {[%emt 0:00:00]} Rc3+ {[%emt 0:00:48] [#]} 52. Kg4 $2 {[%emt 0:00:00]} (52. Kf2 $1 $18 {Rb8 would be deadly.} Rb3 53. Rb8) 52... Rb3 $2 {[%emt 0:00:39][%mdl 8192]} (52... Re3 $14) 53. Rb8 {[%emt 0:00:00]} Rb4 {[%emt 0:01:07]} 54. b7 $2 {[%emt 0:00:00]} (54. Kg3 $18 Rb3+ 55. Kg4) 54... Rxb7 $1 $11 {[%emt 0:00:06] The position is equal.} 55. Rg8 {[%emt 0:00:00] And now Rg6+ would win.} Rg7 {[%emt 0:01:42] Wards off Rg6+} 56. Rf8 {[%emt 0:00:00]} Rf7 {[%emt 0:00:01]} 57. Rg8 {[%emt 0:00:00]} Rg7 {[%emt 0:00:05]} 58. Rd8 {[%emt 0:00:00] Rd6 is the strong threat.} (58. Rf8 $5 Rf7 $8 59. Rg8 $11) 58... Rd7 {[%emt 0:00:20] Wards off Rd6. A fantastic game!   Weighted Error Value: White=0.48/Black=0.50} 1/2-1/2

[Event "51st Rilton Cup 2023-24"]
[Site "Stockholm"]
[Date "2024.01.04"]
[Round "8.4"]
[White "Socko, Bartosz"]
[Black "Bailet, Pierre"]
[Result "1-0"]
[ECO "D02"]
[WhiteElo "2550"]
[BlackElo "2492"]
[Annotator "TA"]
[PlyCount "101"]
[EventDate "2023.12.27"]
[EventType "swiss"]
[EventCountry "SWE"]
[SourceTitle "playchess.com"]
[Source "ChessBase"]
[SourceQuality "1"]
[TimeControl "40/5400+30:1800+30"]

{[%evp 9,101,0,15,19,18,20,19,23,27,23,40,21,13,4,16,8,5,0,0,0,21,21,18,15,20,11,11,18,48,41,37,34,30,30,46,37,43,51,53,32,34,19,38,19,116,106,114,85,98,109,101,98,101,94,105,85,104,94,146,116,162,25,102,101,100,101,156,162,351,357,368,340,559,534,427,286,635,629,614,527,509,505,916,866,2118,1752,12837,12838,12838,12839,12840,12839,12840,12839]} 1. d4 {[%emt 0:00:56]} d5 {[%emt 0:00:17]} 2. Nf3 {[%emt 0:01:02]} Nf6 {[%emt 0:00:25]} 3. Bf4 {[%emt 0:01:06]} e6 {[%emt 0:02:51]} 4. e3 {[%emt 0:00:17]} c5 {[%emt 0:01:01]} 5. Nbd2 {[%emt 0:00:17]} Bd6 {[%emt 0:01:50]} (5... Nc6 $5 {[%cal Rd8b6]}) 6. dxc5 {[%emt 0:00:19] D02: 1 d4 d5 2 Nf3 sidelines, including 2...Nf6 3 g3 and 2...Nf6 3 Bf4.} Bxc5 {[%emt 0:14:43]} 7. Bd3 {[%emt 0:00:34]} Nc6 {[%emt 0:00:43]} 8. O-O {[%emt 0:00:10] The position is equal.} Bd6 {[%emt 0:03:37]} 9. Bxd6 {[%emt 0:05:16]} Qxd6 {[%emt 0:01:01]} 10. c4 {[%emt 0:01:55]} O-O {[%emt 0:03:28] [#]} 11. Qb3 $146 {[%emt 0:01:29]} ({Predecessor:} 11. Rc1 Rd8 12. a3 dxc4 13. Bxc4 Bd7 14. Qe2 Rac8 15. Rfd1 Ne5 16. Nxe5 Qxe5 17. Nf3 Qc7 18. Qe1 Qb6 19. Qe2 Qc7 20. Qe1 Qb6 21. Qe2 Qc7 {½-½ Demchenko,A (2655)-Nakamura,H (2745) FIDE Chess.com Grand Swiss 2019 (3)}) 11... Na5 {[%emt 0:07:33]} 12. Qc3 {[%emt 0:00:35]} Nxc4 {[%emt 0:05:31]} 13. Bxc4 {[%emt 0:00:06]} dxc4 {[%emt 0:00:11]} 14. Nxc4 {[%emt 0:00:05]} Qc7 {[%emt 0:02:16]} 15. Rac1 {[%emt 0:01:55]} b6 {[%emt 0:21:51]} 16. Qa3 {[%emt 0:02:16][%cal Oc4a5]} Bb7 {[%emt 0:03:50]} 17. Nd6 {[%emt 0:09:04] Against Rac8} Qe7 {[%emt 0:00:34]} 18. Ne5 {[%emt 0:00:35]} Ne4 {[%emt 0:04:18]} 19. Nxb7 {[%emt 0:02:20]} Qxb7 {[%emt 0:00:05]} 20. f3 {[%emt 0:00:41]} Nf6 {[%emt 0:03:18]} 21. Nc6 {[%emt 0:00:27]} b5 {[%emt 0:02:31]} 22. Rfd1 {[%emt 0:02:46] Black is weak on the dark squares} Rfe8 {[%emt 0:03:20]} 23. e4 {[%emt 0:04:58]} h6 {[%emt 0:00:45]} 24. Qd6 {[%emt 0:00:54]} Kh7 {[%emt 0:01:57]} 25. Kf1 {[%emt 0:20:26]} Rac8 {[%emt 0:00:18]} 26. Na5 {[%emt 0:05:46][%cal Bc6a5,Ba5b7,Bb7d6][%mdl 32]} Qb6 {[%emt 0:06:07]} (26... Qa8 $1 $11) 27. Qxb6 $16 {[%emt 0:00:31]} axb6 {[%emt 0:00:04]} 28. Nb7 {[%emt 0:03:17]} b4 {[%emt 0:03:28]} 29. Nd6 {[%emt 0:01:17][%csl LRc8,LRe8,LRf7]} Rxc1 {[%emt 0:00:05]} 30. Rxc1 {[%emt 0:00:06][%mdl 4096] Endgame KRN-KRN} Ra8 {[%emt 0:00:59] [#]} 31. Rc4 $1 {[%emt 0:00:52]} ({Much weaker is} 31. Nxf7 Rxa2 32. b3 Nh5 $11) 31... Rxa2 {[%emt 0:03:35]} 32. Rxb4 {[%emt 0:00:06]} Kg6 {[%emt 0:01:06]} 33. Rxb6 {[%emt 0:00:06] Strongly threatening Rb7.} Ra1+ {[%emt 0:00:37]} ({Black should play} 33... Nd7 34. Rb5 Ra1+ 35. Ke2 Rg1) 34. Kf2 {[%emt 0:00:20] Rb7 is the strong threat.} Rc1 {[%emt 0:00:08]} (34... Nd7 $16 35. Rb7 Nc5) 35. g4 {[%emt 0:01:00]} (35. h4 $18) 35... h5 {[%emt 0:00:43]} (35... Nd7 $1 $11 36. Rb7 Ne5) 36. gxh5+ {[%emt 0:11:10] White now steadily converts the win.} Nxh5 {[%emt 0:00:21]} 37. b4 {[%emt 0:00:13][%cal Bb2b4,Bb4b5,Bb5b6,Bb6b7][%mdl 32] aiming for b5.} Rc2+ {[%emt 0:00:59]} (37... Rc3 $142) 38. Ke3 {[%emt 0:00:05]} Rxh2 $2 {[%emt 0:01:52]} (38... Rc3+ 39. Kd4 Rxf3) 39. b5 $18 {[%emt 0:00:07]} Rb2 {[%emt 0:00:32]} 40. Rc6 {[%emt 0:00:41]} Rb3+ $2 {[%emt 0:00:50]} (40... Nf6 41. b6 Rb3+ 42. Kd4 Rb1) 41. Kd4 {[%emt 0:30:46]} Nf6 {[%emt 0:19:26]} 42. b6 {[%emt 0:00:00] Hoping for e5.} Nd7 $2 {[%emt 0:00:13]} (42... Rb1 43. b7 Ne8) 43. b7 {[%emt 0:00:00] White is clearly winning.} Rb1 {[%emt 0:05:38]} 44. Ke3 {[%emt 0:00:00]} Rb3+ {[%emt 0:00:23]} 45. Kd2 {[%emt 0:00:00]} Kf6 {[%emt 0:06:40]} (45... e5 $142 46. Rc7 Nb8 47. Nxf7 Na6) 46. Rc7 {[%emt 0:00:00]} Ke7 {[%emt 0:00:38] [#]} 47. Nxf7 $1 {[%emt 0:00:00][%mdl 576] Decoy} Kxf7 {[%emt 0:00:39]} (47... Ke8 48. e5) 48. Rxd7+ {[%emt 0:00:00]} Kf6 {[%emt 0:00:13]} 49. Kc2 {[%emt 0:00:00]} Rb5 {[%emt 0:00:18]} 50. Kc3 {[%emt 0:00:00]} g5 {[%emt 0:00:12]} 51. Kc4 {[%emt 0:00:00] Weighted Error Value: White=0.16 (very precise) /Black=0.38} 1-0

[Event "51st Rilton Cup 2023-24"]
[Site "Stockholm"]
[Date "2024.01.04"]
[Round "8.5"]
[White "Raja Rithvik R"]
[Black "Kulaots, Kaido"]
[Result "1/2-1/2"]
[ECO "E62"]
[WhiteElo "2500"]
[BlackElo "2524"]
[Annotator "TA"]
[PlyCount "68"]
[EventDate "2023.12.27"]
[EventType "swiss"]
[EventCountry "SWE"]
[SourceTitle "playchess.com"]
[Source "ChessBase"]
[SourceQuality "1"]
[TimeControl "40/5400+30:1800+30"]

{[%evp 15,68,22,33,31,59,55,65,45,80,48,36,39,47,19,37,35,46,41,39,0,0,0,0,7,0,-70,-60,-76,-68,-53,-36,-66,-37,-35,-29,-47,-27,-58,-37,-39,0,0,0,0,0,0,0,0,0,0,0,0,0,0,0]} 1. d4 {[%emt 0:07:48]} Nf6 {[%emt 0:00:13]} 2. c4 {[%emt 0:00:05]} g6 {[%emt 0:00:22]} 3. g3 {[%emt 0:00:27]} Bg7 {[%emt 0:00:57]} 4. Bg2 {[%emt 0:00:05]} O-O {[%emt 0:00:14]} 5. Nc3 {[%emt 0:00:06]} d6 {[%emt 0:00:17]} 6. Nf3 {[%emt 0:00:12]} c6 {[%emt 0:00:15]} 7. O-O {[%emt 0:00:15]} Bf5 {[%emt 0:00:16]} 8. Ne1 {[%emt 0:01:02] seems to push 8.Nh4 aside.} e5 {[%emt 0:03:35]} 9. d5 {[%emt 0:00:26] E62: King's Indian: Fianchetto: 6...c6 and Panno Variation (6...Nc6) without ...a6.} a5 {[%emt 0:01:33]} 10. e4 {[%emt 0:03:42]} Bg4 {[%emt 0:02:32]} 11. f3 {[%emt 0:04:16] White is slightly better.} Bd7 {[%emt 0:01:02]} 12. Be3 {[%emt 0:01:30]} (12. Bg5 {looks sharper.} Qb6+ 13. Rf2 h6 14. Bd2) 12... cxd5 {[%emt 0:09:14]} 13. cxd5 {[%emt 0:00:19]} Na6 {[%emt 0:07:54] [#]} 14. Qe2 $146 {[%emt 0:07:05]} ({Predecessor:} 14. Nd3 b5 15. a3 Qb8 16. b4 Rc8 17. Qd2 axb4 18. axb4 Rc4 19. Rfb1 h5 20. Bf1 {1-0 Hnydiuk,A (2394)-Swiercz,D (2664) Titled Tuesday intern op 26th Apr Late blitz 2022 (4)}) 14... Nh5 {[%emt 0:06:53]} 15. Nc2 {[%emt 0:15:16][%cal Be1c2,Bc2e3,Be3c4][%mdl 32]} f5 {[%emt 0:06:46][%cal Ob7b5]} 16. Bf2 {[%emt 0:02:22]} Nf6 {[%emt 0:09:23]} 17. Ne3 {[%emt 0:03:01]} fxe4 {[%emt 0:10:48]} 18. fxe4 {[%emt 0:01:13]} Nc5 {[%emt 0:00:04][%cal Ob7b5]} 19. Nc4 {[%emt 0:09:08]} Qc7 {[%emt 0:01:11]} 20. Rac1 {[%emt 0:15:54]} ({Better is} 20. a4 $11) 20... Bh6 $15 {[%emt 0:08:01]} 21. Be3 {[%emt 0:04:40]} Bxe3+ {[%emt 0:00:16]} 22. Nxe3 {[%emt 0:00:43]} Rab8 {[%emt 0:03:11]} 23. Nb1 {[%emt 0:09:49]} b5 {[%emt 0:02:21]} (23... Qb6 $5 {[%cal Rd7b5]} 24. Nc4 Qa7 $15) 24. Nd2 {[%emt 0:00:41]} Qb6 {[%emt 0:00:56]} 25. Kh1 {[%emt 0:00:28]} Kg7 {[%emt 0:02:32]} 26. Bf3 {[%emt 0:00:45]} Rf7 {[%emt 0:14:23]} 27. Bg4 {[%emt 0:04:48]} Rbf8 {[%emt 0:01:01]} 28. Bxd7 {[%emt 0:00:09] The position is equal.} Ncxd7 {[%emt 0:00:28]} 29. Rc6 {[%emt 0:02:15]} Qd4 {[%emt 0:01:29][%csl LRb2,LRe4]} 30. Nc2 $1 {[%emt 0:01:35]} Qxb2 {[%emt 0:04:42] [#] aiming for ...Nc5.} 31. Rb1 $1 {[%emt 0:00:25]} Qxa2 {[%emt 0:00:11] Strongly threatening ...Nc5.} 32. Ra1 {[%emt 0:01:04]} Qb2 {[%emt 0:00:14] ...Nc5 is the strong threat.} 33. Rb1 {[%emt 0:00:15]} Qa2 {[%emt 0:00:40] Hoping for ...Nc5.} 34. Ra1 {[%emt 0:00:27]} Qb2 {[%emt 0:00:45] Weighted Error Value: White=0.14 (very precise) /Black=0.11 (very precise)} 1/2-1/2